fUSD/lending_fUSD_20260401
["ID","MTS","AMOUNT","RATE_DAILY","PERIOD"]
[419224564,1775025040232,-50000.0,8.635e-05,2]
[419224565,1775025040242,-642.72,8.671e-05,2]
[419224566,1775025040251,-1887.89,8.681e-05,2]
[419224567,1775025040261,-1000.0,8.733e-05,2]
[419224568,1775025040271,-150.0,8.735e-05,2]
[419224569,1775025040280,-181.89517434,8.735e-05,2]
[419224570,1775025040289,-193.0,8.735e-05,2]
[419224571,1775025040299,-250.0,8.735e-05,2]
[419224572,1775025040309,-5000.0,8.735e-05,2]
[419224573,1775025040318,-150.0,8.735e-05,2]
[419224574,1775025040328,-150.0,8.735e-05,2]
[419224575,1775025040338,-193.0,8.735e-05,2]
[419224576,1775025040347,-194.61263594,8.735e-05,2]
[419224577,1775025040357,-5000.0,8.735e-05,2]
[419224578,1775025040366,-5000.0,8.735e-05,2]
[419224579,1775025040376,-150.0,8.735e-05,2]
[419224580,1775025040385,-150.0,8.735e-05,2]
[419224581,1775025040394,-150.0,8.735e-05,2]
[419224582,1775025040404,-700.0,8.763e-05,2]
[419224583,1775025040413,-260.2,8.819e-05,2]
[419224584,1775025040422,-2190.0,8.85e-05,2]
[419224585,1775025040432,-870.0,8.859e-05,2]
[419224586,1775025040441,-150.0,8.9e-05,2]
[419224587,1775025040451,-600.0,8.923e-05,2]
[419224588,1775025040461,-1374.0,8.963e-05,2]
[419224589,1775025040473,-1400.0,8.977e-05,2]
[419224590,1775025040482,-535.0,8.981e-05,2]
[419224591,1775025040492,-900.0,8.986e-05,2]
[419224592,1775025040501,-1168.0,8.999e-05,2]
[419224593,1775025040510,-863.0,9.017e-05,2]
[419224594,1775025040520,-371.0,9.031e-05,2]
[419224595,1775025040530,-993.0,9.034e-05,2]
[419224596,1775025040540,-1965.0,9.052e-05,2]
[419224597,1775025040549,-1025.69,9.069e-05,2]
[419224598,1775025040559,-1213.0,9.07e-05,2]
[419224599,1775025040569,-1701.0,9.088e-05,2]
[419224600,1775025040579,-258.0,9.102e-05,2]
[419224601,1775025040588,-1380.0,9.12e-05,2]
[419224602,1775025040598,-760.0,9.126e-05,2]
[419224603,1775025040608,-451.0,9.139e-05,2]
[419224604,1775025040617,-817.0,9.157e-05,2]
[419224605,1775025040627,-2000.0,9.159e-05,2]
[419224607,1775025040636,-166.66,9.167e-05,2]
[419224608,1775025040646,-462.0,9.175e-05,2]
[419224609,1775025040656,-500.0,9.175e-05,2]
[419224610,1775025040666,-1160.0,9.177e-05,2]
[419224611,1775025040677,-800.0,9.181e-05,2]
[419224612,1775025040686,-1146.0,9.193e-05,2]
[419224613,1775025040695,-1723.22,9.219e-05,2]
[419224625,1775025041070,-700.0,9.363e-05,2]
[419224626,1775025041087,-697.99,9.393e-05,2]
[419224627,1775025041096,-1049.86,9.406e-05,2]
[419224628,1775025041107,-1900.0,9.434e-05,2]
[419224629,1775025041117,-1100.0,9.442e-05,2]
[419224630,1775025041127,-500.0,9.449e-05,2]
[419224631,1775025041138,-166.66,9.47e-05,2]
[419224632,1775025041147,-420.0,9.497e-05,2]
[419224633,1775025041156,-420.0,9.497e-05,2]
[419224634,1775025041166,-1680.0,9.497e-05,2]
[419224635,1775025041176,-380.0,9.497e-05,2]
[419224636,1775025041186,-255.0,9.497e-05,2]
[419224637,1775025041195,-5000.0,9.498e-05,2]
[419224638,1775025041205,-700.0,9.52e-05,2]
[419224639,1775025041214,-371.94,9.548e-05,2]
[419224640,1775025041223,-1930.0805,9.589e-05,2]
[419224641,1775025041232,-17001.16,9.592e-05,2]
[419224642,1775025041241,-200.0,9.592e-05,2]
[419224643,1775025041250,-1500.0,9.592e-05,2]
[419224644,1775025041259,-1124.0,9.601e-05,2]
[419224645,1775025041270,-5000.0,9.608e-05,2]
[419224646,1775025041279,-193.0,9.608e-05,2]
[419224647,1775025041289,-250.0,9.608e-05,2]
[419224648,1775025041298,-193.0,9.608e-05,2]
[419224649,1775025041308,-984.71,9.65e-05,2]
[419224650,1775025041317,-1229.92,9.668e-05,2]
[419224651,1775025041326,-1684.04,9.67e-05,2]
[419224652,1775025041336,-3326.07,9.67e-05,2]
[419224653,1775025041345,-2411.48,9.711e-05,2]
[419224654,1775025041355,-500.0,9.723e-05,2]
[419224655,1775025041365,-530.0,9.744e-05,2]
[419224656,1775025041374,-166.66,9.772e-05,2]
[419224657,1775025041385,-10099.8,9.777e-05,2]
[419224658,1775025041395,-184.18,9.846e-05,2]
[419224659,1775025041404,-1289.61,9.959e-05,2]
[419224660,1775025041413,-500.0,9.968e-05,2]
[419224661,1775025041422,-500.0,9.968e-05,2]
[419224662,1775025041431,-500.0,9.968e-05,2]
[419224663,1775025041441,-500.70925877,9.968e-05,2]
[419224664,1775025041451,-500.0,9.968e-05,2]
[419224665,1775025041460,-500.0,9.997e-05,2]
[419224666,1775025041469,-162.08085631,0.0001,2]
[419224667,1775025041478,-1043.24,0.0001,2]
[419224668,1775025041487,-200.0,0.0001,2]
[419224669,1775025041496,-500.0,0.0001,2]
[419224670,1775025041506,-518.8745232,0.0001,2]
[419224671,1775025041515,-151.0,0.0001,2]
[419224672,1775025041526,-151.0,0.0001,2]
[419224673,1775025041535,-151.0,0.0001,2]
[419224674,1775025041543,-500.0,0.0001,2]
[419224675,1775025041553,-500.0,0.0001,2]
[419224676,1775025041561,-500.0,0.0001,2]
[419224677,1775025041570,-500.0,0.0001,2]
[419224678,1775025041579,-500.0,0.0001,2]
[419224679,1775025041588,-151.0,0.0001,2]
[419224680,1775025041597,-500.0,0.0001,2]
[419224681,1775025041606,-562.18083163,0.0001,2]
[419224682,1775025041615,-151.0,0.0001,2]
[419224683,1775025041624,-151.0,0.0001,2]
[419224684,1775025041633,-151.0,0.0001,2]
[419224685,1775025041642,-151.0,0.0001,2]
[419224686,1775025041651,-151.0,0.0001,2]
[419224687,1775025041660,-151.0,0.0001,2]
[419224688,1775025041669,-151.0,0.0001,2]
[419224689,1775025041678,-151.0,0.0001,2]
[419224690,1775025041687,-151.0,0.0001,2]
[419224691,1775025041697,-151.0,0.0001,2]
[419224692,1775025041706,-931.87155835,0.0001,2]
[419224693,1775025041715,-151.0,0.0001,2]
[419224694,1775025041724,-151.0,0.0001,2]
[419224695,1775025041733,-151.0,0.0001,2]
[419224696,1775025041743,-151.0,0.0001,2]
[419224697,1775025041752,-151.0,0.0001,2]
[419224698,1775025041762,-151.0,0.0001,2]
[419224699,1775025041774,-151.0,0.0001,2]
[419224700,1775025041783,-151.0,0.0001,2]
[419224701,1775025041792,-151.0,0.0001,2]
[419224702,1775025041802,-151.0,0.0001,2]
[419224703,1775025041812,-151.0,0.0001,2]
[419224704,1775025041821,-151.0,0.0001,2]
[419224705,1775025041831,-223.71114096,0.0001,2]
[419224706,1775025041839,-738.34266848,0.0001,2]
[419224707,1775025041848,-540.30350779,0.0001,2]
[419224708,1775025041858,-540.30350779,0.0001,2]
[419224709,1775025041867,-560.53,0.00010014,2]
[419224710,1775025041876,-166.66,0.00010075,2]
[419224711,1775025041885,-500.0,0.00010271,2]
[419224712,1775025041894,-1043.24,0.00010274,2]
[419224713,1775025041903,-500.0,0.00010298,2]
[419224714,1775025041913,-192.4255,0.000103,7]
[419224715,1775025041922,-2000.0,0.00010303,2]
[419224716,1775025041931,-166.66,0.00010378,2]
[419224717,1775025041940,-180.0,0.00010447,2]
[419224718,1775025041949,-587.0,0.00010447,2]
[419224719,1775025041959,-720.0,0.00010447,2]
[419224720,1775025041968,-433.0,0.00010447,2]
[419224721,1775025041977,-151.0,0.00010492,2]
[419224722,1775025041985,-151.0,0.00010501,2]
[419224723,1775025041994,-181.16,0.00010511,2]
[419224724,1775025042003,-151.0,0.00010511,2]
[419224725,1775025042012,-1002.99147901,0.00010516,2]
[419224726,1775025042022,-901.53330761,0.00010516,2]
[419224727,1775025042031,-1000.0,0.00010516,2]
[419224728,1775025042040,-1000.0,0.00010516,2]
[419224729,1775025042049,-500.0,0.00010545,2]
[419224730,1775025042059,-1043.24,0.00010548,2]
[419224731,1775025042067,-200.0,0.00010548,2]
[419224732,1775025042076,-4362.383174,0.00010659,2]
[419224733,1775025042086,-5809.828472,0.00010659,2]
[419224734,1775025042095,-3716.840268,0.00010659,2]
[419224735,1775025042104,-166.66,0.0001068,2]
[419224736,1775025042114,-10448.4784,0.00010682,2]
[419224737,1775025042123,-1043.24,0.00010822,2]
[419224738,1775025042132,-502.01723983,0.00010846,2]
[419224739,1775025042140,-500.0,0.00010873,2]
[419224740,1775025042149,-500.0,0.00010873,2]
[419224741,1775025042158,-2374.347056,0.00010877,2]
[419224742,1775025042167,-11093.67882117,0.000109,2]
[419224743,1775025042176,-500.0,0.00010958,2]
[419224744,1775025042185,-500.0,0.00010958,3]
[419224745,1775025042194,-500.0,0.00010958,4]
[419224746,1775025042203,-500.0,0.00010958,5]
[419224747,1775025042213,-500.0,0.00010958,6]
[419224748,1775025042222,-500.0,0.00010958,7]
[419224749,1775025042231,-500.0,0.00010958,8]
[419224750,1775025042240,-500.0,0.00010958,9]
[419224751,1775025042249,-500.0,0.00010958,10]
[419224752,1775025042259,-500.0,0.00010958,11]
[419224753,1775025042268,-500.0,0.00010958,12]
[419224754,1775025042278,-500.0,0.00010958,13]
[419224755,1775025042287,-500.0,0.00010958,14]
[419224756,1775025042296,-391.78082543,0.00010958,15]
[419224757,1775025042305,-500.0,0.00010959,2]
[419224758,1775025042315,-216.6270075,0.00010959,2]
[419224759,1775025042325,-158.53,0.00010959,2]
[419224760,1775025042334,-189.46461618,0.00010959,2]
[419224761,1775025042343,-1500.0,0.00011064,2]
[419224762,1775025042352,-1500.0,0.00011064,2]
[419224763,1775025042362,-856.0,0.00011072,2]
[419224764,1775025042371,-856.0,0.00011072,2]
[419224765,1775025042380,-856.0,0.00011072,2]
[419224766,1775025042389,-856.0,0.00011072,2]
[419224767,1775025042398,-856.0,0.00011072,2]
[419224768,1775025042407,-856.0,0.00011072,2]
[419224769,1775025042416,-856.0,0.00011072,2]
[419224770,1775025042426,-856.0,0.00011072,2]
[419224771,1775025042435,-856.0,0.00011072,2]
[419224772,1775025042444,-856.0,0.00011072,2]
[419224773,1775025042454,-856.0,0.00011072,2]
[419224774,1775025042463,-856.0,0.00011072,2]
[419224775,1775025042472,-856.0,0.00011072,2]
[419224776,1775025042482,-856.0,0.00011072,2]
[419224778,1775025042491,-856.0,0.00011072,2]
[419224780,1775025042500,-856.0,0.00011072,2]
[419224782,1775025042510,-856.0,0.00011072,2]
[419224783,1775025042519,-856.0,0.00011072,2]
[419224784,1775025042528,-856.0,0.00011072,2]
[419224785,1775025042537,-500.0,0.00011072,2]
[419224786,1775025042546,-500.0,0.00011072,2]
[419224787,1775025042555,-500.0,0.00011072,2]
[419224788,1775025042564,-500.0,0.00011072,2]
[419224789,1775025042573,-500.0,0.00011072,2]
[419224790,1775025042582,-500.0,0.00011072,2]
[419224791,1775025042591,-856.0,0.00011072,2]
[419224792,1775025042600,-856.0,0.00011072,2]
[419224793,1775025042609,-856.0,0.00011072,2]
[419224794,1775025042619,-856.0,0.00011072,2]
[419224795,1775025042628,-874.0,0.00011072,2]
[419224796,1775025042638,-150.0,0.00011072,2]
[419224797,1775025042647,-150.0,0.00011072,2]
[419224798,1775025042656,-150.0,0.00011072,2]
[419224799,1775025042666,-197.65781346,0.00011072,2]
[419224800,1775025042675,-500.0,0.00011073,2]
[419224801,1775025042686,-500.12335694,0.00011073,2]
[419224802,1775025042695,-500.85843489,0.00011073,2]
[419224803,1775025042704,-500.0,0.00011073,2]
[419224805,1775025042713,-315.41304023,0.00011073,2]
[419224806,1775025042723,-500.0,0.00011073,2]
[419224807,1775025042732,-200.69101128,0.00011073,2]
[419224808,1775025042742,-500.0,0.00011073,2]
[419224809,1775025042751,-1043.24,0.00011096,2]
[419224810,1775025042761,-200.0,0.00011096,2]
[419224811,1775025042771,-37602.129812,0.00011099,2]
[419224812,1775025042780,-37602.12981195,0.00011099,2]
[419224813,1775025042790,-37602.12981195,0.00011099,2]
[419224814,1775025042799,-1043.24,0.0001137,2]
[419224816,1775025042808,-2750.6,0.00011393,2]
[419224817,1775025042817,-2750.6,0.00011393,2]
[419224819,1775025042828,-250.0,0.00011409,2]
[419224820,1775025042838,-1090.85419464,0.00011421,2]
[419224821,1775025042848,-477.69648607,0.00011421,2]
[419224822,1775025042858,-2000.0,0.00011448,2]
[419224823,1775025042867,-184.0,0.00011491,2]
[419224824,1775025042877,-736.0,0.00011491,2]
[419224825,1775025042887,-2000.0,0.00011612,2]
[419224826,1775025042898,-2000.0,0.00011612,2]
[419224827,1775025042909,-1001.29164834,0.00011621,2]
[419224828,1775025042918,-1000.0,0.00011621,2]
[419224829,1775025042929,-1000.0,0.00011621,2]
[419224830,1775025042938,-1000.0,0.00011621,2]
[419224831,1775025042948,-37602.12981195,0.00011644,2]
[419224832,1775025042956,-1043.24,0.00011644,2]
[419224833,1775025042966,-200.0,0.00011644,2]
[419224834,1775025042975,-246.8505,0.000118,12]
[419224835,1775025042984,-1043.24,0.00011918,2]
[419224836,1775025042993,-1703.19002491,0.0001216,2]
[419224837,1775025043002,-2500.0,0.0001216,2]
[419224838,1775025043012,-1500.0,0.00012168,2]
[419224839,1775025043023,-1500.0,0.00012168,2]
[419224840,1775025043032,-1500.0,0.00012168,2]
[419224841,1775025043040,-1043.24,0.00012192,2]
[419224842,1775025043049,-200.0,0.00012192,2]
[419224843,1775025043059,-915.74161044,0.00012277,2]
[419224844,1775025043069,-1043.24,0.00012466,2]
[419224845,1775025043079,-2000.0,0.00012593,2]
[419224846,1775025043089,-1096.0,0.00012639,2]
[419224847,1775025043098,-37602.12981195,0.0001268,2]
[419224848,1775025043107,-2963.57500766,0.00012708,2]
[419224849,1775025043117,-2000.0,0.00012716,2]
[419224850,1775025043126,-2000.0,0.00012716,2]
[419224851,1775025043136,-504.51019122,0.00012716,2]
[419224852,1775025043145,-151.67371875,0.00012739,2]
[419224853,1775025043154,-1043.24,0.0001274,2]
[419224854,1775025043164,-200.0,0.0001274,2]
[419224855,1775025043174,-371.94,0.0001298,2]
[419224856,1775025043184,-92707.11895945,0.00013,2]
[419224857,1775025043194,-250.0,0.00013,2]
[419224858,1775025043203,-1043.29819711,0.00013014,2]
[419224859,1775025043213,-505.0,0.00013111,2]
[419224860,1775025043223,-150.0,0.00013154,2]
[419224861,1775025043233,-150.0,0.00013154,2]
[419224862,1775025043242,-150.0,0.00013154,2]
[419224863,1775025043252,-267.77354857,0.00013154,2]
[419224864,1775025043262,-316.669,0.000132,17]
[419224865,1775025043272,-1899.64837719,0.00013264,2]
[419224866,1775025043282,-2500.0,0.00013264,2]
[419224867,1775025043291,-200.0,0.00013288,2]
[419224868,1775025043300,-11093.67882116,0.00013301,2]
[419224869,1775025043310,-17732.45001252,0.00013504,2]
[419224870,1775025043319,-2411.48,0.00013595,2]
[419224871,1775025043328,-500.0,0.00013698,2]
[419224872,1775025043338,-500.0,0.00013698,2]
[419224873,1775025043348,-500.0,0.00013698,2]
[419224874,1775025043358,-500.0,0.00013698,2]
[419224875,1775025043367,-500.0,0.00013698,2]
[419224876,1775025043377,-500.0,0.00013698,2]
[419224877,1775025043386,-500.0,0.00013698,2]
[419224878,1775025043396,-500.0,0.00013698,2]
[419224879,1775025043406,-500.0,0.00013698,2]
[419224880,1775025043415,-500.0,0.00013698,2]
[419224881,1775025043424,-500.0,0.00013698,2]
[419224882,1775025043434,-500.0,0.00013698,2]
[419224883,1775025043443,-500.0,0.00013698,2]
[419224884,1775025043453,-500.0,0.00013698,2]
[419224885,1775025043462,-500.0,0.00013698,2]
[419224886,1775025043471,-500.0,0.00013698,2]
[419224887,1775025043480,-500.0,0.00013698,2]
[419224888,1775025043490,-500.0,0.00013698,2]
[419224889,1775025043500,-500.0,0.00013698,2]
[419224890,1775025043510,-500.0,0.00013698,2]
[419224891,1775025043520,-500.0,0.00013698,2]
[419224892,1775025043530,-500.0,0.00013698,2]
[419224893,1775025043540,-500.0,0.00013698,2]
[419224894,1775025043549,-500.0,0.00013698,2]
[419224895,1775025043559,-500.0,0.00013698,2]
[419224896,1775025043569,-500.0,0.00013698,2]
[419224897,1775025043579,-500.0,0.00013698,2]
[419224898,1775025043589,-500.0,0.00013698,2]
[419224899,1775025043600,-500.0,0.00013698,2]
[419224900,1775025043609,-500.0,0.00013698,2]
[419224901,1775025043618,-500.0,0.00013698,2]
[419224902,1775025043628,-500.0,0.00013698,2]
[419224903,1775025043639,-500.0,0.00013698,2]
[419224904,1775025043649,-500.0,0.00013698,2]
[419224905,1775025043658,-500.0,0.00013698,2]
[419224906,1775025043668,-500.0,0.00013698,2]
[419224907,1775025043678,-500.0,0.00013698,2]
[419224908,1775025043688,-302.3860171,0.00013698,2]
[419224909,1775025043698,-500.0,0.00013698,2]
[419224910,1775025043708,-500.0,0.00013698,2]
[419224911,1775025043718,-500.0,0.00013698,2]
[419224912,1775025043728,-500.0,0.00013698,2]
[419224913,1775025043738,-500.0,0.00013698,2]
[419224914,1775025043747,-500.0,0.00013698,2]
[419224915,1775025043757,-500.0,0.00013698,2]
[419224916,1775025043767,-500.0,0.00013698,2]
[419224917,1775025043778,-500.0,0.00013698,2]
[419224918,1775025043788,-500.0,0.00013698,2]
[419224919,1775025043798,-500.0,0.00013698,2]
[419224920,1775025043808,-500.0,0.00013698,2]
[419224921,1775025043817,-376.79746068,0.00013698,2]
[419224922,1775025043827,-500.0,0.00013698,2]
[419224923,1775025043837,-500.0,0.00013698,2]
[419224924,1775025043847,-500.0,0.00013698,2]
[419224925,1775025043856,-500.0,0.00013698,2]
[419224926,1775025043865,-500.0,0.00013698,2]
[419224927,1775025043875,-500.0,0.00013698,2]
[419224928,1775025043885,-500.0,0.00013698,2]
[419224929,1775025043895,-500.0,0.00013698,2]
[419224930,1775025043905,-500.0,0.00013698,2]
[419224931,1775025043914,-500.0,0.00013698,2]
[419224932,1775025043924,-500.0,0.00013698,2]
[419224933,1775025043933,-500.0,0.00013698,2]
[419224934,1775025043943,-500.0,0.00013698,2]
[419224935,1775025043953,-500.0,0.00013698,2]
[419224936,1775025043964,-500.0,0.00013698,2]
[419224937,1775025043973,-500.0,0.00013698,2]
[419224938,1775025043983,-500.0,0.00013698,2]
[419224939,1775025043992,-500.0,0.00013698,2]
[419224940,1775025044002,-521.10158946,0.00013698,2]
[419224941,1775025044012,-500.0,0.00013698,2]
[419224942,1775025044022,-500.0,0.00013698,2]
[419224943,1775025044031,-500.0,0.00013698,2]
[419224944,1775025044041,-500.0,0.00013698,2]
[419224945,1775025044050,-500.0,0.00013698,2]
[419224946,1775025044060,-500.0,0.00013698,2]
[419224947,1775025044069,-175.33019501,0.00013698,2]
[419224948,1775025044078,-500.0,0.00013698,2]
[419224949,1775025044088,-500.0,0.00013698,2]
[419224950,1775025044098,-500.0,0.00013698,2]
[419224951,1775025044107,-500.0,0.00013698,2]
[419224952,1775025044117,-618.03329484,0.00013698,2]
[419224953,1775025044126,-500.0,0.00013698,2]
[419224954,1775025044135,-500.0,0.00013698,2]
[419224955,1775025044144,-500.0,0.00013698,2]
[419224956,1775025044154,-500.0,0.00013698,2]
[419224957,1775025044163,-500.0,0.00013698,2]
[419224958,1775025044172,-500.0,0.00013698,2]
[419224959,1775025044181,-500.0,0.00013698,2]
[419224960,1775025044191,-500.0,0.00013698,2]
[419224961,1775025044200,-500.0,0.00013698,2]
[419224962,1775025044210,-500.0,0.00013698,2]
[419224963,1775025044220,-500.0,0.00013698,2]
[419224964,1775025044230,-500.0,0.00013698,2]
[419224965,1775025044240,-500.0,0.00013698,2]
[419224966,1775025044250,-500.0,0.00013698,2]
[419224967,1775025044260,-504.62510561,0.00013698,2]
[419224968,1775025044271,-500.0,0.00013698,2]
[419224969,1775025044280,-500.0,0.00013698,2]
[419224970,1775025044290,-500.0,0.00013698,2]
[419224971,1775025044299,-500.0,0.00013698,2]
[419224972,1775025044308,-500.0,0.00013698,2]
[419224973,1775025044318,-500.0,0.00013698,2]
[419224974,1775025044327,-500.0,0.00013698,2]
[419224975,1775025044336,-489.51900798,0.00013698,2]
[419224976,1775025044346,-500.0,0.00013698,2]
[419224977,1775025044355,-500.0,0.00013698,2]
[419224978,1775025044364,-500.0,0.00013698,2]
[419224979,1775025044373,-500.0,0.00013698,2]
[419224980,1775025044383,-502.04948952,0.00013698,2]
[419224981,1775025044395,-500.0,0.00013698,2]
[419224982,1775025044405,-500.0,0.00013698,2]
[419224983,1775025044415,-500.0,0.00013698,2]
[419224984,1775025044425,-500.0,0.00013698,2]
[419224985,1775025044434,-500.0,0.00013698,2]
[419224986,1775025044444,-500.0,0.00013698,2]
[419224987,1775025044453,-567.75072671,0.00013698,2]
[419224988,1775025044463,-500.0,0.00013698,2]
[419224989,1775025044474,-500.0,0.00013698,2]
[419224990,1775025044484,-500.0,0.00013698,2]
[419224991,1775025044493,-500.0,0.00013698,2]
[419224992,1775025044503,-500.0,0.00013698,2]
[419224993,1775025044512,-500.0,0.00013698,2]
[419224994,1775025044522,-500.0,0.00013698,2]
[419224995,1775025044531,-500.0,0.00013698,2]
[419224996,1775025044541,-500.0,0.00013698,2]
[419224997,1775025044550,-500.0,0.00013698,2]
[419224998,1775025044559,-500.0,0.00013698,2]
[419224999,1775025044569,-500.0,0.00013698,2]
[419225000,1775025044578,-500.0,0.00013698,2]
[419225001,1775025044587,-500.0,0.00013698,2]
[419225002,1775025044596,-289.97620277,0.00013698,2]
[419225003,1775025044606,-500.0,0.00013698,2]
[419225004,1775025044615,-500.0,0.00013698,2]
[419225005,1775025044624,-500.0,0.00013698,2]
[419225006,1775025044633,-500.0,0.00013698,2]
[419225007,1775025044642,-500.0,0.00013698,2]
[419225008,1775025044651,-500.0,0.00013698,2]
[419225009,1775025044660,-500.0,0.00013698,2]
[419225010,1775025044669,-500.0,0.00013698,2]
[419225011,1775025044679,-500.0,0.00013698,2]
[419225012,1775025044688,-500.0,0.00013698,2]
[419225013,1775025044698,-500.0,0.00013698,2]
[419225014,1775025044707,-500.0,0.00013698,2]
[419225015,1775025044716,-500.0,0.00013698,2]
[419225016,1775025044726,-500.0,0.00013698,2]
[419225017,1775025044735,-500.0,0.00013698,2]
[419225018,1775025044744,-500.0,0.00013698,2]
[419225019,1775025044753,-500.0,0.00013698,2]
[419225020,1775025044763,-500.0,0.00013698,2]
[419225021,1775025044772,-500.0,0.00013698,2]
[419225022,1775025044781,-500.0,0.00013698,2]
[419225023,1775025044791,-500.0,0.00013698,2]
[419225024,1775025044801,-500.0,0.00013698,2]
[419225025,1775025044810,-500.0,0.00013698,2]
[419225026,1775025044819,-500.0,0.00013698,2]
[419225027,1775025044829,-212.34445911,0.00013698,2]
[419225028,1775025044838,-500.0,0.00013698,2]
[419225029,1775025044847,-500.0,0.00013698,2]
[419225030,1775025044858,-500.0,0.00013698,2]
[419225031,1775025044866,-500.0,0.00013698,2]
[419225032,1775025044876,-500.0,0.00013698,2]
[419225033,1775025044885,-500.0,0.00013698,2]
[419225034,1775025044895,-500.0,0.00013698,2]
[419225035,1775025044904,-500.0,0.00013698,2]
[419225036,1775025044914,-500.0,0.00013698,2]
[419225037,1775025044923,-500.0,0.00013698,2]
[419225038,1775025044932,-500.0,0.00013698,2]
[419225039,1775025044942,-500.0,0.00013698,2]
[419225040,1775025044952,-500.0,0.00013698,2]
[419225041,1775025044961,-500.0,0.00013698,2]
[419225042,1775025044970,-500.0,0.00013698,2]
[419225043,1775025044979,-500.0,0.00013698,2]
[419225044,1775025044989,-500.0,0.00013698,2]
[419225045,1775025044998,-500.0,0.00013698,2]
[419225046,1775025045008,-500.0,0.00013698,2]
[419225047,1775025045018,-500.0,0.00013698,2]
[419225048,1775025045028,-500.0,0.00013698,2]
[419225049,1775025045037,-500.0,0.00013698,2]
[419225050,1775025045297,-500.0,0.00013698,2]
[419225051,1775025045307,-500.0,0.00013698,2]
[419225052,1775025045317,-500.0,0.00013698,2]
[419225053,1775025045327,-500.0,0.00013698,2]
[419225054,1775025045337,-500.0,0.00013698,2]
[419225055,1775025045347,-500.0,0.00013698,2]
[419225056,1775025045358,-500.0,0.00013698,2]
[419225057,1775025045367,-500.0,0.00013698,2]
[419225058,1775025045377,-500.0,0.00013698,2]
[419225059,1775025045388,-500.0,0.00013698,2]
[419225060,1775025045398,-500.0,0.00013698,2]
[419225061,1775025045408,-500.0,0.00013698,2]
[419225062,1775025045418,-500.0,0.00013698,2]
[419225063,1775025045428,-500.0,0.00013698,2]
[419225064,1775025045438,-445.36727502,0.00013698,2]
[419225065,1775025045449,-500.0,0.00013698,2]
[419225066,1775025045460,-500.0,0.00013698,2]
[419225067,1775025045468,-500.0,0.00013698,2]
[419225068,1775025045478,-500.0,0.00013698,2]
[419225069,1775025045488,-500.0,0.00013698,2]
[419225070,1775025045497,-541.27886182,0.00013698,2]
[419225071,1775025045506,-500.0,0.00013698,2]
[419225072,1775025045515,-500.0,0.00013698,2]
[419225073,1775025045525,-500.0,0.00013698,2]
[419225074,1775025045535,-500.0,0.00013698,2]
[419225075,1775025045545,-500.0,0.00013698,2]
[419225076,1775025045554,-183.58723642,0.00013698,2]
[419225077,1775025045564,-500.0,0.00013698,2]
[419225078,1775025045574,-500.0,0.00013698,2]
[419225079,1775025045584,-500.0,0.00013698,2]
[419225080,1775025045593,-500.0,0.00013698,2]
[419225081,1775025045603,-500.0,0.00013698,2]